fUST/lending_fUST_20250515
["ID","MTS","AMOUNT","RATE_DAILY","PERIOD"]
[361144572,1747303851097,-450.0,0.00017303,2]
[361144573,1747303851106,-542.37,0.00017303,2]
[361144574,1747303851116,-521.18,0.00017303,2]
[361144575,1747303851125,-420.18,0.00017303,2]
[361144576,1747303851135,-450.0,0.00017303,2]
[361144577,1747303851144,-450.0,0.00017303,2]
[361144578,1747303851154,-518.2,0.00017303,2]
[361144579,1747303851163,-214.36,0.00017303,2]
[361144580,1747303851180,-176.5,0.00017303,2]
[361144581,1747303851193,-450.0,0.00017303,2]
[361144582,1747303851203,-450.0,0.00017303,2]
[361144583,1747303851212,-450.0,0.00017303,2]
[361144584,1747303851223,-387.642719,0.00017303,2]
[361144585,1747303851232,-387.642719,0.00017303,2]
[361144586,1747303851242,-146.81607004,0.00017303,2]
[361144587,1747303851808,-450.0,0.00016815,2]
[361144588,1747303851820,-450.0,0.00016952,2]
[361144589,1747303851830,-151.0,0.00017029,2]
[361144590,1747303851840,-151.0,0.00017031,2]
[361144591,1747303851849,-450.0,0.00017089,2]
[361144592,1747303851859,-181.745952,0.00017089,2]
[361144593,1747303851870,-190.1742314,0.00017226,2]
[361144594,1747303851879,-303.18392996,0.00017303,2]
[361144595,1747303851889,-478.47,0.00017303,2]
[361144596,1747303851899,-450.0,0.00017303,2]
[361144597,1747303851908,-450.0,0.00017303,2]
[361144598,1747303851918,-450.0,0.00017303,2]
[361144599,1747303851927,-450.0,0.00017303,2]
[361144600,1747303851937,-449.72,0.00017303,2]
[361144601,1747303851946,-450.0,0.00017303,2]
[361144602,1747303851956,-450.0,0.00017303,2]
[361144603,1747303851965,-450.0,0.00017303,2]
[361144604,1747303851975,-450.0,0.00017303,2]
[361144605,1747303851985,-450.0,0.00017303,2]
[361144606,1747303851995,-450.0,0.00017303,2]
[361144607,1747303852005,-484.98,0.00017303,2]
[361144608,1747303852015,-450.0,0.00017303,2]
[361144609,1747303852024,-450.0,0.00017303,2]
[361144610,1747303852034,-450.0,0.00017303,2]
[361144611,1747303852043,-543.09,0.00017303,2]
[361144612,1747303852052,-477.1,0.00017303,2]
[361144613,1747303852062,-254.22,0.00017303,2]
[361144614,1747303852072,-228.76,0.00017303,2]
[361144615,1747303852081,-450.0,0.00017303,2]
[361144616,1747303852091,-2497.75110802,0.00017303,2]
[361144617,1747303852103,-68.88889198,0.00017303,2]
[361144618,1747303852112,-450.0,0.00017303,2]
[361144619,1747303852122,-211.56,0.00017303,2]
[361144620,1747303852131,-450.0,0.00017303,2]
[361144621,1747303852140,-588.25,0.00017303,2]
[361144622,1747303852149,-408.02351742,0.00017303,2]
[361144623,1747303852549,-2191.01459427,0.00016647,2]
[361144624,1747303852642,-2808.98540573,0.00016647,2]
[361144625,1747303852651,-409.83663402,0.00016814,2]
[361144626,1747303852661,-243.392793,0.00017029,2]
[361144627,1747303852670,-243.392793,0.00017031,2]
[361144628,1747303852680,-243.392793,0.00017166,2]
[361144629,1747303852689,-243.392793,0.00017168,2]
[361144630,1747303852699,-41.97648258,0.00017303,2]
[361144631,1747303852709,-450.0,0.00017303,2]
[361144632,1747303852719,-450.0,0.00017303,2]
[361144633,1747303852734,-450.0,0.00017303,2]
[361144634,1747303852744,-450.0,0.00017303,2]
[361144635,1747303852754,-450.0,0.00017303,2]
[361144636,1747303852764,-450.0,0.00017303,2]
[361144637,1747303852774,-450.0,0.00017303,2]
[361144638,1747303852783,-450.0,0.00017303,2]
[361144639,1747303852793,-151.0,0.00017304,2]
[361144640,1747303852804,-1214.83,0.00017304,2]
[361144641,1747303852813,-450.0,0.00017304,2]
[361144642,1747303852823,-1685.95,0.00017304,2]
[361144643,1747303852833,-450.0,0.00017304,2]
[361144644,1747303852843,-450.0,0.00017304,2]
[361144645,1747303852853,-450.0,0.00017304,2]
[361144646,1747303852863,-450.0,0.00017304,2]
[361144647,1747303852874,-2059.65,0.00017304,2]
[361144648,1747303852884,-523.83,0.00017304,2]
[361144649,1747303852894,-933.06,0.00017304,2]
[361144650,1747303852905,-450.0,0.00017304,2]
[361144651,1747303852915,-151.0,0.00017304,2]
[361144652,1747303852925,-151.0,0.00017304,2]
[361144653,1747303852934,-151.0,0.00017305,2]
[361144654,1747303852944,-151.0,0.00017305,2]
[361144655,1747303852954,-227.133418,0.00017305,2]
[361144656,1747303852964,-227.133418,0.00017305,2]
[361144657,1747303852974,-151.0,0.00017305,2]
[361144658,1747303852983,-450.0,0.00017305,2]
[361144659,1747303852993,-450.0,0.00017305,2]
[361144660,1747303853003,-450.0,0.00017305,2]
[361144661,1747303853012,-450.0,0.00017305,2]
[361144662,1747303853022,-502.96,0.00017305,2]
[361144663,1747303853032,-151.0,0.00017305,2]
[361144664,1747303853042,-450.0,0.00017305,2]
[361144665,1747303853052,-453.47,0.00017305,2]
[361144666,1747303853062,-450.0,0.00017305,2]
[361144667,1747303853072,-151.0,0.00017305,2]
[361144668,1747303853082,-450.0,0.00017305,2]
[361144669,1747303853093,-450.0,0.00017305,2]
[361144670,1747303853103,-450.0,0.00017305,2]
[361144671,1747303853113,-450.0,0.00017305,2]
[361144672,1747303853122,-450.0,0.00017305,2]
[361144673,1747303853132,-450.0,0.00017305,2]
[361144674,1747303853141,-450.0,0.00017305,2]
[361144675,1747303853151,-450.0,0.00017305,2]
[361144676,1747303853161,-151.0,0.00017305,2]
[361144677,1747303853171,-151.0,0.00017305,2]
[361144678,1747303853180,-151.0,0.00017305,2]
[361144679,1747303853190,-563.933956,0.00017305,2]
[361144680,1747303853199,-563.933956,0.00017305,2]
[361144681,1747303853209,-450.0,0.00017305,2]
[361144682,1747303853219,-8256.532174,0.00017305,2]
[361144683,1747303853229,-7454.50026605,0.00017305,2]
[361144684,1747303853402,-243.392793,0.00017029,2]
[361144685,1747303853412,-243.392793,0.00017304,2]
[361144686,1747303853422,-576.2908985,0.00017305,2]
[361144689,1747304121253,151.0,0.00015,2]
[361144692,1747304730113,-773.42412225,0.00016643,2]
[361144697,1747304909213,279.91737402,0.0001,2]
[361144698,1747304924275,20006.27507163,0.0001,2]
[361144717,1747305032297,-5000.0,0.00016312,2]
[361144718,1747305032306,-205.0,0.00016808,2]
[361144719,1747305032316,-300.0,0.00016809,2]
[361144720,1747305032326,-300.0,0.00016809,2]
[361144721,1747305032335,-300.0,0.00016809,2]
[361144722,1747305032344,-1200.0,0.00016809,2]
[361144723,1747305032354,-400.0,0.00016809,2]
[361144724,1747305032364,-250.0,0.0001681,2]
[361144725,1747305032373,-215.46528817,0.0001681,2]
[361144726,1747305032382,-191.94323916,0.0001681,2]
[361144727,1747305032392,-407.8833117,0.0001681,2]
[361144728,1747305032401,-500.0,0.0001681,2]
[361144729,1747305032410,-500.0,0.0001681,2]
[361144730,1747305032419,-500.0,0.0001681,2]
[361144731,1747305032429,-500.0,0.0001681,2]
[361144732,1747305032438,-500.0,0.0001681,2]
[361144733,1747305032448,-472.06351747,0.0001681,2]
[361144734,1747305032458,-165.74243961,0.0001681,2]
[361144735,1747305032468,-500.0,0.0001681,2]
[361144736,1747305032477,-500.0,0.0001681,2]
[361144737,1747305032486,-500.0,0.0001681,2]
[361144738,1747305032496,-500.0,0.0001681,2]
[361144739,1747305032505,-500.0,0.0001681,2]
[361144740,1747305032516,-500.0,0.0001681,2]
[361144741,1747305032525,-450.0,0.0001681,2]
[361144742,1747305032535,-500.0,0.0001681,2]
[361144743,1747305032543,-568.19082774,0.0001681,2]
[361144744,1747305032553,-400.51275651,0.0001681,2]
[361144745,1747305032562,-450.0,0.0001681,2]
[361144746,1747305032572,-467.53,0.0001681,2]
[361144747,1747305032582,-400.68537429,0.0001681,2]
[361144748,1747305032704,-357.97973424,0.0001681,2]
[361144749,1747305032747,-400.0,0.0001681,2]
[361144750,1747305032757,-837.6,0.0001681,2]
[361144751,1747305032767,-450.0,0.0001681,2]
[361144752,1747305032776,-1975.37,0.0001681,2]
[361144753,1747305032786,-450.0,0.0001681,2]
[361144754,1747305032795,-500.0,0.0001681,2]
[361144755,1747305032805,-450.0,0.0001681,2]
[361144756,1747305032815,-646.74,0.0001681,2]
[361144757,1747305032825,-450.0,0.0001681,2]
[361144758,1747305032834,-450.0,0.0001681,2]
[361144759,1747305032844,-400.0,0.0001681,2]
[361144760,1747305032854,-573.04,0.0001681,2]
[361144761,1747305032864,-450.0,0.0001681,2]
[361144762,1747305032873,-450.0,0.0001681,2]
[361144763,1747305032882,-450.0,0.0001681,2]
[361144764,1747305032891,-400.0,0.0001681,2]
[361144765,1747305032901,-2596.7,0.0001681,2]
[361144766,1747305032911,-450.0,0.0001681,2]
[361144767,1747305032920,-450.0,0.0001681,2]
[361144768,1747305032929,-16389.56565527,0.0001681,2]
[361144769,1747305032939,-450.0,0.00016811,2]
[361144770,1747305032948,-400.0,0.00016811,2]
[361144771,1747305032957,-450.0,0.00016811,2]
[361144772,1747305032967,-1045.62,0.00016811,2]
[361144773,1747305032976,-625.13,0.00016811,2]
[361144774,1747305032986,-6053.39,0.00016811,2]
[361144775,1747305032995,-450.0,0.00016811,2]
[361144776,1747305033004,-450.0,0.00016811,2]
[361144777,1747305033015,-2045.34,0.00016811,2]
[361144778,1747305033024,-3707.59,0.00016811,2]
[361144779,1747305033034,-450.0,0.00016811,2]
[361144780,1747305033046,-808.11,0.00016811,2]
[361144781,1747305033056,-502.65,0.00016811,2]
[361144782,1747305033066,-450.0,0.00016811,2]
[361144783,1747305033076,-450.0,0.00016811,2]
[361144784,1747305033085,-1402.78,0.00016811,2]
[361144785,1747305033095,-450.0,0.00016811,2]
[361144786,1747305033106,-510.15,0.00016811,2]
[361144787,1747305033120,-208.04649638,0.00016811,2]
[361144788,1747305033130,-489.49,0.00016811,2]
[361144789,1747305033140,-763.69,0.00016811,2]
[361144790,1747305033151,-380.9593464,0.00016811,2]
[361144791,1747305033161,-450.0,0.00016811,2]
[361144792,1747305033170,-624.01,0.00016811,2]
[361144793,1747305033182,-450.0,0.00016811,2]
[361144794,1747305033195,-39.15350244,0.00016811,2]
[361144795,1747305033209,-130.38807708,0.00016811,2]
[361144796,1747305033218,-450.0,0.00016811,2]
[361144797,1747305033227,-563.54,0.00016811,2]
[361144798,1747305033237,-607.47,0.00016811,2]
[361144799,1747305033247,-677.77,0.00016811,2]
[361144800,1747305033256,-450.0,0.00016811,2]
[361144801,1747305033267,-401.14507919,0.00016812,2]
[361144802,1747305033277,-200.0,0.00016812,2]
[361144803,1747305033287,-450.0,0.00016812,2]
[361144804,1747305033296,-450.0,0.00016812,2]
[361144805,1747305033306,-450.0,0.00016812,2]
[361144806,1747305033314,-311.33,0.00016812,2]
[361144807,1747305033325,-450.0,0.00016812,2]
[361144808,1747305033335,-450.0,0.00016812,2]
[361144809,1747305033344,-450.0,0.00016812,2]
[361144810,1747305033354,-450.0,0.00016812,2]
[361144811,1747305033363,-450.0,0.00016812,2]
[361144812,1747305033373,-450.0,0.00016812,2]
[361144813,1747305033382,-450.0,0.00016812,2]
[361144814,1747305033392,-450.0,0.00016812,2]
[361144815,1747305033401,-268.42,0.00016812,2]
[361144816,1747305033411,-450.0,0.00016812,2]
[361144817,1747305033421,-450.0,0.00016812,2]
[361144818,1747305033430,-450.0,0.00016812,2]
[361144819,1747305033440,-450.0,0.00016812,2]
[361144820,1747305033450,-450.0,0.00016812,2]
[361144821,1747305033460,-450.0,0.00016812,2]
[361144822,1747305033470,-450.0,0.00016812,2]
[361144823,1747305033480,-450.0,0.00016812,2]
[361144824,1747305033490,-450.0,0.00016812,2]
[361144825,1747305033500,-450.0,0.00016812,2]
[361144826,1747305033510,-450.0,0.00016812,2]
[361144827,1747305033520,-450.0,0.00016812,2]
[361144828,1747305033530,-450.0,0.00016812,2]
[361144829,1747305033539,-450.0,0.00016812,2]
[361144830,1747305033549,-450.0,0.00016812,2]
[361144831,1747305033559,-450.0,0.00016812,2]
[361144832,1747305033569,-450.0,0.00016812,2]
[361144833,1747305033579,-450.0,0.00016812,2]
[361144834,1747305033588,-450.0,0.00016812,2]
[361144835,1747305033597,-452.58,0.00016812,2]
[361144836,1747305033607,-450.0,0.00016812,2]
[361144837,1747305033616,-450.0,0.00016812,2]
[361144838,1747305033626,-450.0,0.00016812,2]
[361144839,1747305033636,-490.21,0.00016812,2]
[361144840,1747305033645,-2994.42,0.00016812,2]
[361144841,1747305033655,-450.0,0.00016812,2]
[361144842,1747305033664,-785.61,0.00016812,2]
[361144843,1747305033673,-450.0,0.00016812,2]
[361144844,1747305033683,-450.0,0.00016812,2]
[361144845,1747305033693,-450.0,0.00016812,2]
[361144846,1747305033702,-450.0,0.00016812,2]
[361144847,1747305033711,-450.0,0.00016812,2]
[361144848,1747305033720,-570.59267612,0.00016812,2]
[361144849,1747305033730,-539.47984706,0.00016812,2]
[361144850,1747305033740,-450.0,0.00016812,2]
[361144851,1747305033750,-450.0,0.00016812,2]
[361144852,1747305033759,-1012.36,0.00016812,2]
[361144853,1747305033769,-450.0,0.00016812,2]
[361144854,1747305033778,-1404.96,0.00016812,2]
[361144855,1747305033787,-450.0,0.00016812,2]
[361144856,1747305033797,-450.0,0.00016812,2]
[361144857,1747305033806,-450.0,0.00016812,2]
[361144858,1747305033815,-450.0,0.00016812,2]
[361144859,1747305033825,-450.0,0.00016813,2]
[361144860,1747305033835,-450.0,0.00016813,2]
[361144861,1747305033844,-419.93,0.00016813,2]
[361144862,1747305033854,-200.0,0.00016813,2]
[361144863,1747305033863,-450.0,0.00016813,2]
[361144864,1747305033873,-450.0,0.00016813,2]
[361144865,1747305033883,-200.0,0.00016813,2]
[361144866,1747305033892,-200.0,0.00016813,2]
[361144867,1747305033902,-200.0,0.00016813,2]
[361144868,1747305033911,-200.0,0.00016813,2]
[361144869,1747305033921,-450.0,0.00016813,2]
[361144870,1747305033931,-153.37145403,0.00016813,2]
[361144871,1747305033941,-200.0,0.00016813,2]
[361144872,1747305033951,-450.0,0.00016813,2]
[361144873,1747305033966,-373.27480959,0.00016813,2]
[361144874,1747305033980,-555.87993981,0.00016813,2]
[361144875,1747305033994,-450.0,0.00016813,2]
[361144876,1747305034008,-200.0,0.00016813,2]
[361144877,1747305034019,-450.0,0.00016813,2]
[361144878,1747305034031,-400.0,0.00016813,2]
[361144879,1747305034045,-200.0,0.00016813,2]
[361144880,1747305034058,-400.0,0.00016813,2]
[361144881,1747305034071,-153.90569631,0.00016813,2]
[361144882,1747305034085,-450.0,0.00016813,2]
[361144883,1747305034098,-450.0,0.00016813,2]
[361144884,1747305034110,-200.0,0.00016813,2]
[361144885,1747305034127,-200.0,0.00016813,2]
[361144886,1747305034142,-450.0,0.00016813,2]
[361144887,1747305034156,-450.0,0.00016813,2]
[361144888,1747305034167,-450.0,0.00016813,2]
[361144889,1747305034180,-400.0,0.00016813,2]
[361144890,1747305034194,-200.0,0.00016813,2]
[361144891,1747305034207,-450.0,0.00016813,2]
[361144892,1747305034221,-450.0,0.00016813,2]
[361144893,1747305034235,-479.59006106,0.00016813,2]
[361144894,1747305034248,-290.82,0.00016813,2]
[361144895,1747305034260,-200.0,0.00016813,2]
[361144896,1747305034272,-150.0,0.00016813,2]
[361144897,1747305034283,-302.44,0.00016813,2]
[361144898,1747305034295,-450.0,0.00016813,2]
[361144899,1747305034307,-450.0,0.00016813,2]
[361144900,1747305034321,-258.72,0.00016813,2]
[361144901,1747305034334,-450.0,0.00016813,2]
[361144902,1747305034347,-450.0,0.00016813,2]
[361144903,1747305034360,-450.0,0.00016813,2]
[361144904,1747305034373,-450.0,0.00016813,2]
[361144905,1747305034388,-533.03099271,0.00016813,2]
[361144906,1747305034401,-450.0,0.00016813,2]
[361144907,1747305034414,-450.0,0.00016813,2]
[361144908,1747305034424,-450.0,0.00016813,2]
[361144909,1747305034435,-400.0,0.00016813,2]
[361144910,1747305034446,-400.0,0.00016813,2]
[361144911,1747305034459,-400.0,0.00016813,2]
[361144912,1747305034473,-450.0,0.00016813,2]
[361144913,1747305034486,-384.44907012,0.00016813,2]
[361144914,1747305034497,-400.0,0.00016813,2]
[361144915,1747305034508,-488.17,0.00016813,2]
[361144916,1747305034520,-592.12,0.00016813,2]
[361144917,1747305034531,-450.0,0.00016813,2]
[361144918,1747305034544,-450.0,0.00016813,2]
[361144919,1747305034556,-400.0,0.00016813,2]
[361144920,1747305034567,-436.92,0.00016813,2]
[361144921,1747305034577,-400.0,0.00016813,2]
[361144922,1747305034588,-483.41,0.00016813,2]
[361144923,1747305034599,-358.0,0.00016813,2]
[361144924,1747305034623,-400.0,0.00016813,2]
[361144925,1747305034638,-400.0,0.00016813,2]
[361144926,1747305034652,-450.0,0.00016813,2]
[361144927,1747305034672,-400.0,0.00016813,2]
[361144928,1747305034686,-400.0,0.00016813,2]
[361144929,1747305034700,-450.0,0.00016813,2]
[361144930,1747305034713,-450.0,0.00016813,2]
[361144931,1747305034726,-400.0,0.00016813,2]
[361144932,1747305034739,-450.0,0.00016813,2]
[361144933,1747305034751,-450.0,0.00016813,2]
[361144934,1747305034763,-400.0,0.00016813,2]
[361144935,1747305034775,-450.0,0.00016813,2]
[361144936,1747305034788,-400.0,0.00016813,2]
[361144937,1747305034800,-400.0,0.00016813,2]
[361144938,1747305034812,-1716.38,0.00016813,2]
[361144939,1747305034825,-450.0,0.00016813,2]
[361144940,1747305034837,-450.0,0.00016813,2]
[361144941,1747305034849,-450.0,0.00016813,2]
[361144942,1747305034862,-579.33,0.00016813,2]
[361144943,1747305034873,-400.0,0.00016813,2]
[361144944,1747305034885,-777.55,0.00016813,2]
[361144945,1747305034897,-450.0,0.00016813,2]
[361144946,1747305034911,-400.0,0.00016813,2]
[361144947,1747305034924,-400.0,0.00016813,2]
[361144948,1747305034936,-450.0,0.00016813,2]
[361144949,1747305034949,-337.61915151,0.00016813,2]
[361144950,1747305034961,-450.0,0.00016813,2]
[361144951,1747305034973,-400.0,0.00016813,2]
[361144952,1747305034986,-400.0,0.00016813,2]
[361144953,1747305034997,-450.0,0.00016814,2]
[361144954,1747305035008,-378.35124306,0.00016814,2]
[361144955,1747305035020,-450.0,0.00016814,2]
[361144956,1747305035031,-450.0,0.00016814,2]
[361144957,1747305035045,-450.0,0.00016814,2]
[361144958,1747305035056,-450.0,0.00016814,2]
[361144959,1747305035068,-450.0,0.00016814,2]
[361144960,1747305035079,-450.0,0.00016814,2]
[361144961,1747305035091,-450.0,0.00016814,2]
[361144962,1747305035104,-450.0,0.00016814,2]
[361144963,1747305035119,-450.0,0.00016814,2]
[361144964,1747305035131,-450.0,0.00016814,2]
[361144965,1747305035143,-450.0,0.00016814,2]
[361144966,1747305035155,-450.0,0.00016814,2]
[361144967,1747305035166,-450.0,0.00016814,2]
[361144968,1747305035178,-450.0,0.00016814,2]
[361144969,1747305035190,-450.0,0.00016814,2]
[361144970,1747305035202,-450.0,0.00016814,2]
[361144971,1747305035213,-450.0,0.00016814,2]
[361144972,1747305035224,-450.0,0.00016814,2]
[361144973,1747305035235,-500.0,0.00016815,2]
[361144974,1747305035246,-231.28369723,0.00016816,2]
[361144975,1747305035258,-500.0,0.00016891,2]
[361144976,1747305035271,-208.53963186,0.00016891,2]
[361144977,1747305035282,-500.0,0.00016891,2]
[361144978,1747305035294,-500.0,0.00016891,2]
[361144979,1747305035305,-500.0,0.00016891,2]
[361144980,1747305035317,-500.0,0.00016891,2]
[361144981,1747305035329,-540.7024862,0.00016891,2]
[361144982,1747305035340,-500.0,0.00016891,2]
[361144983,1747305035351,-500.0,0.00016891,2]
[361144984,1747305035363,-500.0,0.00016891,2]
[361144985,1747305035375,-500.0,0.00016891,2]
[361144986,1747305035385,-200.0,0.00016891,2]
[361144987,1747305035395,-500.0,0.00016891,2]
[361144988,1747305035405,-402.55,0.00016892,2]
[361144989,1747305035415,-400.0,0.00016892,2]
[361144990,1747305035424,-462.56,0.00016892,2]
[361144991,1747305035613,-450.0,0.00016947,2]
[361144992,1747305035624,-467.53,0.00016947,2]
[361144993,1747305035634,-837.6,0.00016947,2]
[361144994,1747305035644,-400.0,0.00016947,2]
[361144995,1747305035655,-1975.37,0.00016947,2]
[361144996,1747305035664,-400.0,0.00016947,2]
[361144997,1747305035674,-450.0,0.00016947,2]
[361144998,1747305035684,-646.74,0.00016947,2]
[361144999,1747305035693,-389.47,0.00016947,2]
[361145000,1747305035702,-450.0,0.00016947,2]
[361145001,1747305035712,-450.0,0.00016947,2]
[361145002,1747305035721,-2596.7,0.00016947,2]
[361145003,1747305035730,-450.0,0.00016947,2]
[361145004,1747305035739,-450.0,0.00016947,2]
[361145005,1747305035748,-450.0,0.00016948,2]
[361145006,1747305035758,-450.0,0.00016948,2]
[361145007,1747305035767,-1045.62,0.00016948,2]
[361145008,1747305035776,-625.13,0.00016948,2]
[361145009,1747305035785,-6053.39,0.00016948,2]
[361145010,1747305035795,-426.4,0.00016948,2]
[361145011,1747305035804,-450.0,0.00016948,2]
[361145012,1747305035814,-2045.34,0.00016948,2]
[361145013,1747305035824,-3707.59,0.00016948,2]
[361145014,1747305035833,-450.0,0.00016948,2]
[361145015,1747305035843,-808.11,0.00016948,2]
[361145016,1747305035853,-502.65,0.00016948,2]
[361145017,1747305035862,-450.0,0.00016948,2]
[361145018,1747305035871,-450.0,0.00016948,2]
[361145019,1747305035881,-1402.78,0.00016948,2]
[361145020,1747305035891,-450.0,0.00016948,2]
[361145021,1747305035900,-510.15,0.00016948,2]
[361145022,1747305035909,-763.69,0.00016948,2]
[361145023,1747305035918,-450.0,0.00016948,2]
[361145024,1747305035927,-624.01,0.00016948,2]
[361145025,1747305035936,-450.0,0.00016948,2]
[361145026,1747305035945,-450.0,0.00016948,2]
[361145027,1747305035955,-563.54,0.00016948,2]
[361145028,1747305035964,-607.47,0.00016948,2]
[361145029,1747305035973,-677.77,0.00016948,2]
[361145030,1747305035983,-450.0,0.00016948,2]
[361145031,1747305035991,-450.0,0.00016949,2]
[361145032,1747305036001,-450.0,0.00016949,2]
[361145033,1747305036010,-450.0,0.00016949,2]
[361145034,1747305036019,-450.0,0.00016949,2]
[361145035,1747305036029,-450.0,0.00016949,2]
[361145036,1747305036040,-450.0,0.00016949,2]
[361145037,1747305036049,-499.70088958,0.00016949,2]
[361145038,1747305036059,-357.86,0.00016949,2]
[361145039,1747305036069,-450.0,0.00016949,2]
[361145040,1747305036078,-450.0,0.00016949,2]
[361145041,1747305036090,-450.0,0.00016949,2]
[361145042,1747305036099,-450.0,0.00016949,2]
[361145043,1747305036109,-450.0,0.00016949,2]
[361145044,1747305036123,-450.0,0.00016949,2]
[361145045,1747305036134,-450.0,0.00016949,2]
[361145046,1747305036143,-450.0,0.00016949,2]
[361145047,1747305036153,-277.26,0.00016949,2]
[361145048,1747305036164,-450.0,0.00016949,2]
[361145049,1747305036173,-538.37769554,0.00016949,2]
[361145050,1747305036182,-450.0,0.00016949,2]
[361145051,1747305036192,-450.0,0.00016949,2]
[361145052,1747305036201,-450.0,0.00016949,2]
[361145053,1747305036211,-500.0,0.00016949,2]
[361145054,1747305036221,-450.0,0.00016949,2]
[361145055,1747305036230,-450.0,0.00016949,2]
[361145056,1747305036239,-450.0,0.00016949,2]
[361145057,1747305036249,-450.0,0.00016949,2]
[361145058,1747305036259,-450.0,0.00016949,2]
[361145059,1747305036270,-450.0,0.00016949,2]
[361145060,1747305036280,-450.0,0.00016949,2]
[361145061,1747305036290,-452.58,0.00016949,2]
[361145062,1747305036299,-450.0,0.00016949,2]
[361145063,1747305036309,-450.0,0.00016949,2]
[361145064,1747305036318,-450.0,0.00016949,2]
[361145065,1747305036328,-490.21,0.00016949,2]
[361145066,1747305036337,-2994.42,0.00016949,2]
[361145067,1747305036347,-450.0,0.00016949,2]
[361145068,1747305036357,-785.61,0.00016949,2]
[361145069,1747305036366,-450.0,0.00016949,2]
[361145070,1747305036376,-450.0,0.00016949,2]
[361145071,1747305036386,-450.0,0.00016949,2]
[361145072,1747305036395,-450.0,0.00016949,2]
[361145073,1747305036404,-450.0,0.00016949,2]
[361145074,1747305036414,-450.0,0.00016949,2]
[361145075,1747305036423,-450.0,0.00016949,2]
[361145076,1747305036433,-1012.36,0.00016949,2]
[361145077,1747305036442,-450.0,0.00016949,2]
[361145078,1747305036452,-1404.96,0.00016949,2]
[361145079,1747305036462,-450.0,0.00016949,2]
[361145080,1747305036473,-450.0,0.00016949,2]
[361145081,1747305036485,-450.0,0.00016949,2]
[361145082,1747305036496,-450.0,0.00016949,2]
[361145083,1747305036506,-324.16,0.0001695,2]
[361145084,1747305036516,-200.0,0.0001695,2]
[361145085,1747305036526,-450.0,0.0001695,2]
[361145086,1747305036536,-450.0,0.0001695,2]
[361145087,1747305036546,-450.0,0.0001695,2]
[361145088,1747305036556,-450.0,0.0001695,2]
[361145089,1747305036566,-450.0,0.0001695,2]
[361145090,1747305036575,-247.82,0.0001695,2]
[361145091,1747305036584,-450.0,0.0001695,2]
[361145092,1747305036594,-450.0,0.0001695,2]
[361145093,1747305036603,-450.0,0.0001695,2]
[361145094,1747305036613,-340.05,0.0001695,2]
[361145095,1747305036623,-450.0,0.0001695,2]
[361145096,1747305036632,-450.0,0.0001695,2]
[361145097,1747305036642,-450.0,0.0001695,2]